fUST/lending_fUST_20250901
["ID","MTS","AMOUNT","RATE_DAILY","PERIOD"]
[382537651,1756659881463,478.17347262,0.0001725,2]
[382537652,1756659885591,480.0,0.0001725,2]
[382537653,1756659888774,5000.0,0.0001725,2]
[382537654,1756659890619,480.0,0.0001725,2]
[382537655,1756659892176,923.89,0.0001725,2]
[382537656,1756659893952,480.0,0.0001725,2]
[382537657,1756659895047,544.28,0.0001725,2]
[382537658,1756659895735,567.11,0.0001725,2]
[382537659,1756659898193,86.55652738,0.0001725,2]
[382537660,1756659898217,412.77347262,0.0001725,2]
[382537661,1756659898537,5008.35,0.0001725,2]
[382537662,1756659898614,1174.02,0.0001725,2]
[382537663,1756659898696,480.0,0.0001725,2]
[382537664,1756659900452,480.0,0.0001725,2]
[382537665,1756659901168,2444.86652738,0.0001725,2]
[382537666,1756659901193,1819.77347262,0.0001725,2]
[382537667,1756659902575,300.0,0.0001725,2]
[382537668,1756659904964,480.0,0.0001725,2]
[382537669,1756659906028,480.0,0.0001725,2]
[382537670,1756659907281,1270.28,0.0001725,2]
[382537671,1756659908544,1138.78,0.0001725,2]
[382537673,1756659911359,4511.17652738,0.0001725,2]
[382537674,1756659911385,128.60087124,0.0001725,2]
[382537675,1756659911453,1021.01,0.0001725,2]
[382537676,1756659915064,480.0,0.0001725,2]
[382537677,1756659916479,946.11,0.0001725,2]
[382537678,1756659917785,2779.2882741,0.00016489,2]
[382537679,1756659917971,526.64,0.0001725,2]
[382537680,1756659918281,-5000.0,0.0001725,2]
[382537681,1756659919025,0.01,0.0001725,2]
[382537682,1756659919050,1162.15,0.0001725,2]
[382537683,1756659922623,480.0,0.0001725,2]
[382537684,1756659923039,2380.57,0.0001725,2]
[382537685,1756659926043,480.0,0.0001725,2]
[382537686,1756659926634,1221.67,0.0001725,2]
[382537687,1756659926712,480.0,0.0001725,2]
[382537688,1756659927178,3795.62,0.0001725,2]
[382537689,1756659927203,1204.38,0.0001725,2]
[382537690,1756659928840,528.06,0.0001725,2]
[382537691,1756659930035,480.0,0.0001725,2]
[382537692,1756659931711,626.71,0.0001725,2]
[382537693,1756659932772,849.04,0.0001725,2]
[382537694,1756659934380,480.0,0.0001725,2]
[382537695,1756659935138,480.0,0.0001725,2]
[382537696,1756659936259,1292.28,0.0001725,2]
[382537697,1756659936839,530.93,0.0001725,2]
[382537698,1756659936932,267.69012047,0.0001725,2]
[382537699,1756659939311,972.4,0.0001725,2]
[382537701,1756659940522,1187.58,0.0001725,2]
[382537702,1756659941041,480.0,0.0001725,2]
[382537703,1756659942366,1283.098481,0.00013699,2]
[382537704,1756659943277,480.0,0.0001725,2]
[382537705,1756659946950,1070.28139853,0.0001725,2]
[382537706,1756659946974,828.88860147,0.0001725,2]
[382537707,1756659947820,480.0,0.0001725,2]
[382537708,1756659950050,480.0,0.0001725,2]
[382537709,1756659951104,480.0,0.0001725,2]
[382537710,1756659951175,951.79,0.0001725,2]
[382537711,1756659951278,480.0,0.0001725,2]
[382537712,1756659951520,5000.0,0.0001725,2]
[382537713,1756659954058,745.14,0.0001725,2]
[382537714,1756659954472,480.0,0.0001725,2]
[382537715,1756659955020,706.66,0.0001725,2]
[382537716,1756659960343,480.0,0.0001725,2]
[382537717,1756659960822,480.0,0.0001725,2]
[382537718,1756659962320,975.55,0.0001725,2]
[382537719,1756659963592,300.0,0.0001725,2]
[382537720,1756659964285,480.0,0.0001725,2]
[382537721,1756659964685,598.63,0.0001725,2]
[382537722,1756659966690,480.0,0.0001725,2]
[382537723,1756659966815,480.0,0.0001725,2]
[382537724,1756659967937,547.44,0.0001725,2]
[382537725,1756659969689,842.75840736,0.0001725,2]
[382537726,1756659970913,643.11,0.0001725,2]
[382537727,1756659970977,421.37920368,0.0001725,2]
[382537728,1756659971921,210.68960184,0.0001725,2]
[382537729,1756659973167,619.54,0.0001725,2]
[382537730,1756659974033,5000.0,0.0001725,2]
[382537731,1756659975094,480.0,0.0001725,2]
[382537732,1756659978322,1768.88,0.0001725,2]
[382537733,1756659979043,13.65278712,0.0001725,2]
[382537734,1756659979066,783.47721288,0.0001725,2]
[382537735,1756659979842,480.0,0.0001725,2]
[382537736,1756659980228,586.66,0.0001725,2]
[382537737,1756659981088,1065.01,0.0001725,2]
[382537738,1756659982020,480.0,0.0001725,2]
[382537739,1756659982067,883.48,0.0001725,2]
[382537740,1756659984155,735.89,0.0001725,2]
[382537741,1756659987959,961.38,0.0001725,2]
[382537742,1756659989850,1557.13,0.0001725,2]
[382537743,1756659991703,480.0,0.0001725,2]
[382537744,1756659993267,480.0,0.0001725,2]
[382537745,1756659996265,480.0,0.0001725,2]
[382537746,1756659996943,480.0,0.0001725,2]
[382537747,1756659997627,5000.0,0.0001725,2]
[382537748,1756660000806,480.0,0.0001725,2]
[382537749,1756660001548,3517.95,0.0001725,2]
[382537750,1756660003935,1123.38,0.0001725,2]
[382537751,1756660004116,593.15,0.0001725,2]
[382537752,1756660005985,480.0,0.0001725,2]
[382537753,1756660007649,480.0,0.0001725,2]
[382537754,1756660007771,596.0,0.0001725,2]
[382537755,1756660008085,480.0,0.0001725,2]
[382537756,1756660010529,480.0,0.0001725,2]
[382537757,1756660010774,480.0,0.0001725,2]
[382537758,1756660011793,480.0,0.0001725,2]
[382537759,1756660012616,655.56,0.0001725,2]
[382537760,1756660013290,480.0,0.0001725,2]
[382537761,1756660015897,1302.86,0.0001725,2]
[382537762,1756660016205,480.0,0.0001725,2]
[382537763,1756660016443,903.6,0.0001725,2]
[382537764,1756660017268,480.0,0.0001725,2]
[382537765,1756660022527,300.0,0.0001725,2]
[382537766,1756660024591,480.0,0.0001725,2]
[382537767,1756660025089,1010.56,0.0001725,2]
[382537768,1756660025467,480.0,0.0001725,2]
[382537769,1756660025556,522.69,0.0001725,2]
[382537770,1756660025997,480.0,0.0001725,2]
[382537771,1756660026198,480.0,0.0001725,2]
[382537772,1756660029051,480.0,0.0001725,2]
[382537773,1756660032428,480.0,0.0001725,2]
[382537774,1756660033374,561.27,0.0001725,2]
[382537775,1756660034829,480.0,0.0001725,2]
[382537776,1756660037228,480.0,0.0001725,2]
[382537777,1756660038639,1004.14,0.0001725,2]
[382537778,1756660040786,2104.27,0.0001725,2]
[382537779,1756660041346,480.0,0.0001725,2]
[382537780,1756660041378,177.08,0.0001725,2]
[382537781,1756660041404,302.92,0.0001725,2]
[382537782,1756660041605,1104.03,0.0001725,2]
[382537783,1756660042493,5958.29,0.0001725,2]
[382537784,1756660042765,480.0,0.0001725,2]
[382537785,1756660043882,895.23,0.0001725,2]
[382537786,1756660044191,480.0,0.0001725,2]
[382537787,1756660044277,480.0,0.0001725,2]
[382537788,1756660044647,299.54,0.0001725,2]
[382537789,1756660044672,180.46,0.0001725,2]
[382537790,1756660044747,1106.51,0.0001725,2]
[382537791,1756660045013,1106.51,0.0001725,2]
[382537792,1756660045243,1106.51,0.0001725,2]
[382537793,1756660045275,480.0,0.0001725,2]
[382537794,1756660045472,1106.51,0.0001725,2]
[382537795,1756660045975,1106.51,0.0001725,2]
[382537796,1756660046356,1106.51,0.0001725,2]
[382537797,1756660046592,1106.51,0.0001725,2]
[382537798,1756660046838,1106.51,0.0001725,2]
[382537799,1756660047082,487.47,0.0001725,2]
[382537800,1756660047110,619.04,0.0001725,2]
[382537801,1756660050795,714.68,0.0001725,2]
[382537802,1756660055316,480.0,0.0001725,2]
[382537803,1756660055962,480.0,0.0001725,2]
[382537804,1756660056682,932.89,0.0001725,2]
[382537805,1756660057225,480.0,0.0001725,2]
[382537806,1756660057411,480.0,0.0001725,2]
[382537807,1756660057460,1011.01,0.0001725,2]
[382537808,1756660057589,210.99176297,0.0001725,2]
[382537809,1756660058188,480.0,0.0001725,2]
[382537810,1756660059902,480.0,0.0001725,2]
[382537811,1756660059934,795.43,0.0001725,2]
[382537812,1756660061026,3596.03,0.0001725,2]
[382537813,1756660061709,480.0,0.0001725,2]
[382537814,1756660064055,480.0,0.0001725,2]
[382537815,1756660067946,692.49,0.0001725,2]
[382537816,1756660068445,1048.57,0.0001725,2]
[382537817,1756660068961,727.17,0.0001725,2]
[382537818,1756660070787,480.0,0.0001725,2]
[382537819,1756660070941,610.9,0.0001725,2]
[382537820,1756660072285,550.69,0.0001725,2]
[382537821,1756660072607,4896.35689571,0.0001725,2]
[382537822,1756660073428,480.0,0.0001725,2]
[382537823,1756660076402,1226.76,0.0001725,2]
[382537824,1756660077471,480.0,0.0001725,2]
[382537825,1756660078467,1792.03,0.0001725,2]
[382537826,1756660080543,193.57,0.00015984,2]
[382537827,1756660080818,193.57,0.00015984,2]
[382537828,1756660081086,193.56,0.00015984,2]
[382537829,1756660081590,2475.01520568,0.0001725,2]
[382537830,1756660082480,480.0,0.0001725,2]
[382537831,1756660082514,300.0,0.0001725,2]
[382537832,1756660084549,480.0,0.0001725,2]
[382537833,1756660085501,676.86,0.0001725,2]
[382537834,1756660086667,1042.83,0.0001725,2]
[382537835,1756660087946,1636.62,0.0001725,2]
[382537836,1756660089836,480.0,0.0001725,2]
[382537837,1756660090361,480.0,0.0001725,2]
[382537838,1756660092347,1141.17,0.0001725,2]
[382537839,1756660092391,480.0,0.0001725,2]
[382537840,1756660092814,250.0,0.00016124,2]
[382537841,1756660093827,568.76,0.0001725,2]
[382537842,1756660094179,480.0,0.0001725,2]
[382537843,1756660094278,480.0,0.0001725,2]
[382537844,1756660094344,480.0,0.0001725,2]
[382537845,1756660096439,480.0,0.0001725,2]
[382537846,1756660096548,480.0,0.0001725,2]
[382537847,1756660096697,480.0,0.0001725,2]
[382537848,1756660097851,480.0,0.0001725,2]
[382537849,1756660098822,968.96,0.0001725,2]
[382537850,1756660098990,680.93,0.0001725,2]
[382537851,1756660099118,480.0,0.0001725,2]
[382537852,1756660099895,480.0,0.0001725,2]
[382537853,1756660100253,480.0,0.0001725,2]
[382537854,1756660100406,564.06,0.0001725,2]
[382537855,1756660100441,480.0,0.0001725,2]
[382537856,1756660100551,570.22,0.0001725,2]
[382537857,1756660101254,480.0,0.0001725,2]
[382537858,1756660103560,265.5352574,0.0001725,2]
[382537859,1756660105810,675.56,0.0001725,2]
[382537860,1756660106714,859.09,0.0001725,2]
[382537861,1756660107770,480.0,0.0001725,2]
[382537862,1756660111046,480.0,0.0001725,2]
[382537863,1756660111824,856.03,0.0001725,2]
[382537864,1756660112503,537.12,0.0001725,2]
[382537865,1756660113776,480.0,0.0001725,2]
[382537866,1756660114860,480.0,0.0001725,2]
[382537867,1756660115094,505.26,0.0001725,2]
[382537868,1756660117144,480.0,0.0001725,2]
[382537869,1756660118425,480.0,0.0001725,2]
[382537870,1756660119033,480.0,0.0001725,2]
[382537871,1756660121273,629.0,0.0001725,2]
[382537872,1756660123984,480.0,0.0001725,2]
[382537873,1756660124281,8873.56347054,0.00016355,2]
[382537874,1756660124309,1126.43652946,0.00016355,2]
[382537875,1756660159102,-300.0,0.00017249,2]
[382537876,1756660159121,-480.0,0.0001725,2]
[382537877,1756660159141,-1638.31704045,0.0001725,2]
[382537878,1756660219307,5000.0,0.00017,2]
[382537887,1756660235088,2033.51385415,0.00017,2]
[382537891,1756660238296,-300.0,0.00017249,2]
[382537892,1756660238305,-296.0,0.00017249,2]
[382537893,1756660238315,-509.06550431,0.00017249,2]
[382537894,1756660238325,-500.0,0.00017249,2]
[382537895,1756660238334,-558.65,0.00017249,2]
[382537896,1756660238344,-440.10579419,0.00017249,2]
[382537897,1756660238354,-626.23295955,0.0001725,2]
[382537898,1756660238363,-1322.48,0.0001725,2]
[382537899,1756660238373,-480.0,0.0001725,2]
[382537900,1756660238382,-480.0,0.0001725,2]
[382537901,1756660238394,-480.0,0.0001725,2]
[382537902,1756660238405,-480.0,0.0001725,2]
[382537903,1756660238414,-480.0,0.0001725,2]
[382537904,1756660238423,-480.0,0.0001725,2]
[382537905,1756660238432,-480.0,0.0001725,2]
[382537907,1756660238640,-1271.51,0.0001725,2]
[382537908,1756660238651,-4086.95,0.0001725,2]
[382537909,1756660238660,-540.25,0.0001725,2]
[382537910,1756660238670,-614.18,0.0001725,2]
[382537911,1756660238680,-813.66,0.0001725,2]
[382537912,1756660238689,-531.69,0.0001725,2]
[382537913,1756660238699,-480.0,0.0001725,2]
[382537914,1756660238708,-480.0,0.0001725,2]
[382537915,1756660238717,-480.0,0.0001725,2]
[382537916,1756660238727,-416.95114487,0.0001725,2]
[382537917,1756660238736,-480.0,0.0001725,2]
[382537918,1756660238746,-480.0,0.0001725,2]
[382537919,1756660238755,-480.0,0.0001725,2]
[382537920,1756660238764,-480.0,0.0001725,2]
[382537921,1756660238773,-912.13,0.0001725,2]
[382537922,1756660238783,-480.0,0.0001725,2]
[382537923,1756660238792,-480.0,0.0001725,2]
[382537924,1756660238802,-480.0,0.0001725,2]
[382537925,1756660238811,-480.0,0.0001725,2]
[382537926,1756660238820,-480.0,0.0001725,2]
[382537927,1756660238829,-4799.67,0.0001725,2]
[382537928,1756660238839,-480.0,0.0001725,2]
[382537929,1756660238848,-480.0,0.0001725,2]
[382537930,1756660238858,-480.0,0.0001725,2]
[382537931,1756660238867,-480.0,0.0001725,2]
[382537932,1756660238877,-660.71,0.0001725,2]
[382537933,1756660238886,-1219.07,0.0001725,2]
[382537934,1756660238895,-480.0,0.0001725,2]
[382537935,1756660238904,-934.9,0.0001725,2]
[382537936,1756660238914,-480.0,0.0001725,2]
[382537937,1756660238923,-480.0,0.0001725,2]
[382537938,1756660238933,-918.48,0.0001725,2]
[382537939,1756660238942,-1820.04,0.0001725,2]
[382537940,1756660238951,-480.0,0.0001725,2]
[382537941,1756660238960,-480.0,0.0001725,2]
[382537942,1756660238970,-875.46,0.0001725,2]
[382537943,1756660238979,-480.0,0.0001725,2]
[382537944,1756660238987,-2281.38,0.0001725,2]
[382537945,1756660238996,-480.0,0.0001725,2]
[382537946,1756660239006,-480.0,0.0001725,2]
[382537947,1756660239015,-480.0,0.0001725,2]
[382537948,1756660239024,-921.32,0.0001725,2]
[382537949,1756660239033,-480.0,0.0001725,2]
[382537950,1756660239042,-642.61,0.0001725,2]
[382537951,1756660239051,-1137.55,0.0001725,2]
[382537952,1756660239061,-773.56,0.0001725,2]
[382537953,1756660239070,-480.0,0.0001725,2]
[382537954,1756660239079,-480.0,0.0001725,2]
[382537955,1756660239088,-480.0,0.0001725,2]
[382537956,1756660239097,-480.0,0.0001725,2]
[382537957,1756660239105,-1695.17,0.0001725,2]
[382537958,1756660239114,-593.73,0.0001725,2]
[382537959,1756660239123,-942.36,0.0001725,2]
[382537960,1756660239132,-480.0,0.0001725,2]
[382537961,1756660239141,-500.0,0.0001725,2]
[382537962,1756660239150,-500.0,0.0001725,2]
[382537963,1756660239159,-480.0,0.0001725,2]
[382537964,1756660239168,-500.0,0.0001725,2]
[382537965,1756660239178,-500.0,0.0001725,2]
[382537966,1756660239187,-500.0,0.0001725,2]
[382537967,1756660239196,-192.48109214,0.0001725,2]
[382537968,1756660239205,-480.0,0.0001725,2]
[382537969,1756660239214,-480.0,0.0001725,2]
[382537970,1756660239223,-530.23,0.0001725,2]
[382537971,1756660239232,-480.0,0.0001725,2]
[382537972,1756660239241,-483.93,0.0001725,2]
[382537973,1756660239250,-480.0,0.0001725,2]
[382537974,1756660239258,-480.0,0.0001725,2]
[382537975,1756660239267,-480.0,0.0001725,2]
[382537976,1756660239276,-865.95,0.0001725,2]
[382537977,1756660239285,-1020.63,0.0001725,2]
[382537978,1756660239295,-813.18,0.0001725,2]
[382537979,1756660239304,-480.0,0.0001725,2]
[382537980,1756660239314,-508.81,0.0001725,2]
[382537981,1756660239323,-480.0,0.0001725,2]
[382537982,1756660239333,-480.0,0.0001725,2]
[382537983,1756660239343,-968.45,0.0001725,2]
[382537984,1756660239353,-480.0,0.0001725,2]
[382537985,1756660239363,-1091.33,0.0001725,2]
[382537986,1756660239372,-480.0,0.0001725,2]
[382537987,1756660239381,-783.77,0.0001725,2]
[382537988,1756660239391,-480.0,0.0001725,2]
[382537989,1756660239402,-1124.92,0.0001725,2]
[382537990,1756660239412,-480.0,0.0001725,2]
[382537991,1756660239421,-480.0,0.0001725,2]
[382537992,1756660239430,-480.0,0.0001725,2]
[382537993,1756660239442,-795.69,0.0001725,2]
[382537994,1756660239451,-677.22,0.0001725,2]
[382537995,1756660239460,-480.0,0.0001725,2]
[382537996,1756660239470,-500.0,0.00017251,2]
[382537997,1756660239479,-480.0,0.00017251,2]
[382537998,1756660239488,-480.0,0.00017251,2]
[382537999,1756660239498,-480.0,0.00017251,2]
[382538000,1756660239508,-480.0,0.00017251,2]
[382538001,1756660239517,-480.0,0.00017251,2]
[382538002,1756660239527,-480.0,0.00017251,2]
[382538003,1756660239536,-480.0,0.00017251,2]
[382538004,1756660239546,-846.05,0.00017251,2]
[382538005,1756660239555,-480.0,0.00017251,2]
[382538006,1756660239565,-193.73538634,0.00017251,2]
[382538007,1756660239574,-509.08,0.00017251,2]
[382538008,1756660239583,-480.0,0.00017251,2]
[382538009,1756660239593,-480.0,0.00017251,2]
[382538010,1756660239603,-480.0,0.00017251,2]
[382538011,1756660239613,-635.77,0.00017251,2]
[382538012,1756660239622,-480.0,0.00017251,2]
[382538013,1756660239632,-480.0,0.00017251,2]
[382538014,1756660239642,-480.0,0.00017251,2]
[382538015,1756660239651,-480.0,0.00017251,2]
[382538016,1756660239660,-480.0,0.00017251,2]
[382538017,1756660239670,-480.0,0.00017251,2]
[382538018,1756660239679,-480.66036303,0.00017251,2]
[382538019,1756660239690,-481.07907518,0.00017251,2]
[382538020,1756660239699,-480.0,0.00017251,2]
[382538021,1756660239708,-480.0,0.00017251,2]
[382538022,1756660239718,-480.88289953,0.00017251,2]
[382538023,1756660239728,-594.65,0.00017251,2]
[382538024,1756660239738,-484.56,0.00017251,2]
[382538025,1756660239749,-1261.07,0.00017251,2]
[382538026,1756660239759,-480.0,0.00017251,2]
[382538027,1756660239768,-489.6535696,0.00017251,2]
[382538028,1756660239777,-480.0,0.00017251,2]
[382538029,1756660239786,-480.0,0.00017251,2]
[382538030,1756660239796,-706.62,0.00017251,2]
[382538031,1756660239806,-480.0,0.00017251,2]
[382538032,1756660239815,-480.0,0.00017251,2]
[382538033,1756660239824,-480.0,0.00017251,2]
[382538034,1756660239833,-480.0,0.00017251,2]
[382538035,1756660239842,-565.49,0.00017251,2]
[382538036,1756660239853,-599.00710125,0.00017251,2]
[382538037,1756660239862,-480.0,0.00017251,2]
[382538039,1756660239871,-480.0,0.00017251,2]
[382538040,1756660239880,-303.32377065,0.00017251,2]
[382538041,1756660239889,-480.0,0.00017251,2]
[382538042,1756660239898,-480.0,0.00017251,2]
[382538043,1756660239906,-644.34,0.00017251,2]
[382538044,1756660239915,-542.54,0.00017251,2]
[382538046,1756660239924,-480.0,0.00017251,2]
[382538048,1756660239933,-485.61,0.00017251,2]
[382538050,1756660239943,-559.20092191,0.00017251,2]
[382538052,1756660239951,-2236.80368765,0.00017251,2]
[382538054,1756660239960,-645.13156035,0.00017251,2]
[382538056,1756660239969,-1106.51,0.00017253,2]
[382538058,1756660239978,-1106.51,0.00017253,2]
[382538060,1756660239987,-1106.51,0.00017257,2]
[382538061,1756660239996,-638.0,0.00017258,2]
[382538062,1756660240005,-1106.51,0.00017258,2]
[382538063,1756660240014,-638.0,0.00017263,2]
[382538064,1756660240023,-5027.77548892,0.00017324,2]
[382538066,1756660240032,-2577.94571516,0.00017324,2]
[382538068,1756660240041,-1812.42423469,0.00017325,2]
[382538070,1756660240050,-151.0,0.000174,2]
[382538072,1756660240059,-638.0,0.00017401,2]
[382538073,1756660240067,-959.23,0.00017415,3]
[382538074,1756660240076,-1812.42423468,0.00017418,2]
[382538075,1756660240085,-3025.15520232,0.00017423,2]
[382538076,1756660240094,-261.60833762,0.00017424,2]
[382538077,1756660240104,-183.12583633,0.00017424,2]
[382538078,1756660240113,-218119.70217629,0.00017425,2]
[382538079,1756660240122,-1355.0,0.00017425,2]
[382538080,1756660240131,-638.0,0.00017435,2]
[382538081,1756660240140,-1106.51,0.00017485,2]
[382538082,1756660240149,-1409.0,0.00017489,2]
[382538083,1756660240158,-151.0,0.000175,2]
[382538084,1756660240168,-151.0,0.000175,2]
[382538085,1756660240177,-1812.42423468,0.00017512,2]
[382538086,1756660240186,-151.0,0.00017513,2]
[382538087,1756660240195,-151.0,0.00017513,2]
[382538088,1756660240203,-151.0,0.00017513,2]
[382538089,1756660240213,-1106.51,0.00017522,2]
[382538090,1756660240222,-1106.51,0.00017523,2]
[382538091,1756660240231,-1106.51,0.00017523,2]
[382538092,1756660240240,-1106.51,0.00017523,2]
[382538093,1756660240249,-480.0,0.00017524,2]
[382538094,1756660240258,-480.0,0.00017524,2]
[382538095,1756660240266,-1068.68,0.00017524,2]
[382538096,1756660240276,-480.0,0.00017524,2]
[382538097,1756660240285,-480.0,0.00017524,2]
[382538098,1756660240294,-480.0,0.00017524,2]
[382538099,1756660240303,-480.0,0.00017524,2]
[382538100,1756660240313,-480.0,0.00017524,2]
[382538101,1756660240323,-807.76,0.00017524,2]
[382538102,1756660240333,-933.78,0.00017524,2]
[382538103,1756660240342,-480.0,0.00017524,2]
[382538104,1756660240353,-480.0,0.00017524,2]
[382538105,1756660240363,-480.0,0.00017524,2]
[382538106,1756660240373,-480.0,0.00017524,2]
[382538108,1756660240384,-1179.57,0.00017524,2]
[382538110,1756660240394,-526.22,0.00017524,2]
[382538112,1756660240404,-480.0,0.00017524,2]
[382538114,1756660240413,-600.74,0.00017524,2]
[382538115,1756660240422,-1120.85,0.00017524,2]
[382538117,1756660240433,-480.0,0.00017524,2]
[382538119,1756660240442,-480.0,0.00017524,2]
[382538121,1756660240452,-480.0,0.00017524,2]
[382538123,1756660240462,-480.0,0.00017524,2]
[382538125,1756660240471,-512.05,0.00017524,2]
[382538127,1756660240481,-480.0,0.00017524,2]
[382538129,1756660240491,-480.0,0.00017524,2]
[382538131,1756660240501,-531.63,0.00017524,2]
[382538134,1756660240511,-607.62937422,0.00017524,2]
[382538137,1756660240520,-480.0,0.00017524,2]
[382538140,1756660240530,-480.0,0.00017524,2]
[382538143,1756660240539,-1301.36,0.00017524,2]
[382538146,1756660240549,-526.35,0.00017524,2]
[382538148,1756660240558,-480.0,0.00017524,2]
[382538150,1756660240567,-480.0,0.00017524,2]
[382538152,1756660240576,-580.15751368,0.00017524,2]
[382538154,1756660240585,-210.59940042,0.00017524,2]
[382538156,1756660240595,-480.0,0.00017524,2]
[382538158,1756660240605,-480.0,0.00017524,2]
[382538160,1756660240615,-1209.99,0.00017524,2]
[382538162,1756660240625,-587.53,0.00017524,2]
[382538164,1756660240634,-980.26,0.00017524,2]
[382538166,1756660240643,-480.0,0.00017524,2]
[382538168,1756660240652,-396.2415172,0.00017524,2]
[382538170,1756660240662,-480.0,0.00017524,2]
[382538172,1756660240672,-240.98376815,0.00017524,2]
[382538174,1756660240680,-1285.46,0.00017524,2]
[382538176,1756660240690,-480.0,0.00017524,2]
[382538177,1756660240699,-816.43,0.00017524,2]
[382538179,1756660240708,-480.0,0.00017524,2]
[382538181,1756660240717,-480.0,0.00017524,2]
[382538183,1756660240727,-480.0,0.00017524,2]
[382538185,1756660240737,-480.0,0.00017524,2]
[382538187,1756660240746,-864.13,0.00017524,2]
[382538189,1756660240756,-480.0,0.00017524,2]
[382538191,1756660240766,-480.0,0.00017524,2]
[382538193,1756660240776,-480.0,0.00017524,2]
[382538195,1756660240787,-480.0,0.00017524,2]
[382538197,1756660240797,-1067.38,0.00017524,2]
[382538199,1756660240807,-480.0,0.00017524,2]
[382538201,1756660240816,-480.0,0.00017524,2]
[382538203,1756660240827,-480.0,0.00017524,2]
[382538205,1756660240837,-480.0,0.00017524,2]
[382538207,1756660240846,-816.36,0.00017524,2]
[382538209,1756660240857,-917.59,0.00017524,2]
[382538211,1756660240867,-1244.04,0.00017524,2]
[382538213,1756660240877,-769.18,0.00017524,2]
[382538215,1756660240887,-480.0,0.00017524,2]
[382538217,1756660240896,-480.0,0.00017524,2]
[382538219,1756660240905,-480.0,0.00017524,2]
[382538221,1756660240915,-608.42,0.00017524,2]
[382538223,1756660240926,-480.0,0.00017524,2]
[382538225,1756660240936,-480.0,0.00017524,2]
[382538227,1756660240946,-480.0,0.00017524,2]
[382538229,1756660240955,-1084.36,0.00017524,2]
[382538231,1756660240965,-562.16,0.00017524,2]
[382538233,1756660240974,-480.0,0.00017524,2]
[382538235,1756660240983,-499.45047624,0.00017524,2]
[382538236,1756660240993,-480.0,0.00017524,2]
[382538238,1756660241002,-480.0,0.00017524,2]
[382538240,1756660241012,-480.0,0.00017524,2]
[382538242,1756660241022,-575.89,0.00017524,2]
[382538244,1756660241031,-687.11,0.00017524,2]
[382538246,1756660241041,-480.0,0.00017524,2]
[382538248,1756660241051,-638.64,0.00017524,2]
[382538250,1756660241060,-480.0,0.00017524,2]